Workbook

Sheet Iem-411
A2: 4.1.1 PRODUCCIÓN NACIONAL DE PETROLEO CRUDO Y SUS DERIVADOS
A3: Miles de barriles
C5: Producción nacional petróleo crudo campo | G5: Transporte de crudo por oleoductos | L5: Producción nacional derivados petróleo efectuada por EP Petroecuador
A6: Período | C6: Producción | D6: Producción por empresas | G6: Transporte | H6: Transporte | L6: Producción | M6: Fuel Oil | N6: Residuo | O6: Diesel | P6: Gasolina
C7: total | D7: prom / dia | E7: Empresas Públicas (1) | F7: Privadas | G7: total | H7: prom / dia | I7: SOTE | J7: OTA | K7: OCP(2) | L7: total | M7: # 4 | N7: # 6 (3) | O7: # 2 | P7: extra | Q7: GLP | R7: Otros
C9: a=b+c | E9: b | F9: c | G9: d=e+f+g | I9: e | J9: f | K9: g | L9: h=i+j+k+l+m+n | M9: i | N9: j | O9: k | P9: l | Q9: m | R9: n
A11: 1997 | C11: 141,708 | D11: 388 | E11: 106,701 | F11: 35,007 | G11: 130,933 | H11: 359 | I11: 115,536 | J11: 15,397 | K11: - | L11: 46,120 | M11: 19,451 | N11: - | O11: 8,788 | P11: 7,886 | Q11: 2,310 | R11: 7,685
A12: 1998 | C12: 137,079 | D12: 376 | E12: 101,401 | F12: 35,678 | G12: 127,505 | H12: 349 | I12: 113,845 | J12: 13,660 | K12: - | L12: 50,220 | M12: 21,631 | N12: - | O12: 8,950 | P12: 9,131 | Q12: 2,453 | R12: 8,054
A13: 1999 | C13: 136,291 | D13: 374 | E13: 89,543 | F13: 46,748 | G13: 129,355 | H13: 354 | I13: 116,800 | J13: 12,555 | K13: - | L13: 47,285 | M13: 20,826 | N13: - | O13: 7,012 | P13: 9,633 | Q13: 2,014 | R13: 7,799
A14: 2000 | C14: =+C31 -> 146,209 | D14: =+D31 -> 399 | E14: 85,047 | F14: 61,162 | G14: 130,655 | H14: 357 | I14: 130,655 | J14: 0 | K14: - | L14: 58,940 | M14: 10,787 | N14: 14,079 | O14: 12,080 | P14: 10,226 | Q14: 2,818 | R14: 8,951
A15: 2001 | C15: =+C45 -> 148,746 | D15: =+D45 -> 408 | E15: 82,929 | F15: 65,817 | G15: 134,851 | H15: 369 | I15: 134,851 | J15: 0 | K15: - | L15: 57,703 | M15: 10,946 | N15: 11,898 | O15: 13,450 | P15: 10,799 | Q15: 2,409 | R15: 8,200
A16: 2002 | C16: =+C59 -> 143,758 | D16: =+D59 -> 394 | E16: 80,774 | F16: 62,984 | G16: 132,238 | H16: 362 | I16: 132,238 | J16: 755 | K16: 0 | L16: 55,467 | M16: 11,354 | N16: 10,741 | O16: 12,439 | P16: 10,163 | Q16: 2,060 | R16: 8,710
A17: 2003 | C17: =+C73 -> 153,518 | D17: =+D73 -> 421 | E17: 74,514 | F17: 79,004 | G17: 139,144 | H17: 381 | I17: 120,954 | J17: 473 | K17: 18,190 | L17: 55,431 | M17: 10,812 | N17: 8,879 | O17: 10,961 | P17: 10,028 | Q17: 2,230 | R17: 12,521
A18: 2004 | C18: =+C87 -> 192,383 | D18: =+D87 -> 526 | E18: 71,943 | F18: 120,440 | G18: 180,810 | H18: 494 | I18: 118,436 | J18: 0 | K18: 62,374 | L18: 60,639 | M18: 11,268 | N18: 10,012 | O18: 11,866 | P18: 10,312 | Q18: 2,184 | R18: 14,996
A19: 2005 | C19: =+C101 -> 194,172 | D19: =+D101 -> 532 | E19: 70,972 | F19: 123,200 | G19: 178,646 | H19: 489 | I19: 120,916 | J19: 0 | K19: 57,730 | L19: 59,049 | M19: 10,439 | N19: 8,023 | O19: 12,337 | P19: 10,628 | Q19: 2,122 | R19: 15,500
A20: 2006 | C20: =+C115 -> 195,651 | D20: =+D115 -> 536 | E20: 90,438 | F20: 105,213 | G20: 184,038 | H20: 504 | I20: 126,159 | J20: 0 | K20: 57,879 | L20: 62,902 | M20: 9,810 | N20: 11,785 | O20: 12,056 | P20: 11,355 | Q20: 2,114 | R20: 15,782
A21: 2007 | C21: =+C129 -> 186,547 | D21: =+D129 -> 511 | E21: 94,334 | F21: 92,213 | G21: 175,020 | H21: 480 | I21: 121,118 | J21: 0 | K21: 53,901 | L21: 65,139 | M21: 8,467 | N21: 13,663 | O21: 11,179 | P21: 12,629 | Q21: 1,401 | R21: 17,800
A22: 2008 | C22: =+C143 -> 184,727 | D22: =+D143 -> 505 | E22: 97,571 | F22: 87,157 | G22: 175,055 | H22: 478 | I22: 126,542 | J22: 0 | K22: 48,513 | L22: 67,553 | M22: 8,862 | N22: 13,366 | O22: 11,188 | P22: 13,308 | Q22: 2,073 | R22: 18,756
A23: 2009 | C23: =+C157 -> 177,414 | D23: =+D157 -> 486 | E23: 102,768 | F23: 74,647 | G23: 169,413 | H23: 464 | I23: 128,297 | J23: 0 | K23: 41,116 | L23: 68,545 | M23: 9,143 | N23: 10,571 | O23: 11,180 | P23: 14,265 | Q23: 2,159 | R23: 21,227
A24: 2010 | C24: =+C171 -> 177,422 | D24: =+D171 -> 486 | E24: 109,944 | F24: 67,478 | G24: 169,184 | H24: 464 | I24: 127,658 | J24: 0 | K24: 41,526 | L24: 61,886 | M24: 8,907 | N24: 9,443 | O24: 7,962 | P24: 12,616 | Q24: 1,991 | R24: 20,967
A25: 2011 | C25: =+C185 -> 182,357 | D25: =+D185 -> 500 | E25: 130,528 | F25: 51,829 | G25: 174,052 | H25: 477 | I25: 125,987 | J25: 0 | K25: 48,066 | L25: 70,046 | M25: 9,850 | N25: 10,571 | O25: 11,103 | P25: 14,793 | Q25: 2,530 | R25: 21,199
A26: 2012 | C26: =+C199 -> 184,315 | D26: =+D199 -> 505 | E26: 133,656 | F26: 50,659 | G26: 177,395 | H26: 486 | I26: 129,016 | J26: 0 | K26: 48,379 | L26: 71,566 | M26: 9,048 | N26: 8,238 | O26: 5,594 | P26: 17,133 | Q26: 2,674 | R26: 28,879
A27: 2013 | C27: =+C213 -> 192,120 | D27: =+D213 -> 526 | E27: 144,921 | F27: 47,199 | G27: 185,307 | H27: 508 | I27: 131,972 | J27: 0 | K27: 53,334 | L27: 69,654 | M27: 8,818 | N27: 6,203 | O27: 6,943 | P27: 18,593 | Q27: 2,604 | R27: 26,493
A28: 2014 | C28: =+C227 -> 203,071 | D28: =+D227 -> 556 | E28: 157,976 | F28: 45,095 | G28: 191,634 | H28: 525 | I28: 132,530 | J28: 0 | K28: 59,104 | L28: 65,986 | M28: 9,067 | N28: 1,342 | O28: 6,432 | P28: 19,449 | Q28: 2,005 | R28: 27,689
A31: 2000 | B31: Enero-Diciembre | C31: =SUM(C32:C43) -> 146,209 | D31: =+C31/366 -> 399 | E31: =SUM(E32:E43) -> 85,047 | F31: =SUM(F32:F43) -> 61,162 | G31: =SUM(G32:G43) -> 130,655 | H31: =+G31/366 -> 357 | I31: =SUM(I32:I43) -> 130,655 | K31: - | L31: =SUM(L32:L43) -> 58,940 | M31: 10,787 | N31: 14,079 | O31: 12,080 | P31: 10,226 | Q31: 2,818 | R31: 8,951
B32: Enero | C32: =+E32+F32 -> 11,939 | D32: =+C32/31 -> 385 | E32: 7,261 | F32: 4,678 | G32: =SUM(I32:K32) -> 10,403 | H32: =+G32/31 -> 336 | I32: 10,403 | K32: - | L32: 4,596 | M32: 1,219 | N32: 905 | O32: 711 | P32: 894 | Q32: 230 | R32: =+L32-M32-N32-O32-P32-Q32 -> 637
B33: Febrero | C33: =+E33+F33 -> 11,407 | D33: =+C33/29 -> 393 | E33: 6,906 | F33: 4,501 | G33: =SUM(I33:K33) -> 10,042 | H33: =+G33/29 -> 346 | I33: 10,042 | K33: - | L33: 4,956 | M33: 706 | N33: 1,509 | O33: 851 | P33: 918 | Q33: 239 | R33: =+L33-M33-N33-O33-P33-Q33 -> 733
B34: Marzo | C34: 12,002 | D34: =+C34/31 -> 387 | E34: 7,191 | F34: 4,812 | G34: 10,145 | H34: =+G34/31 -> 327 | I34: 10,145 | K34: - | L34: 4,876 | M34: 727 | N34: 1,655 | O34: 712 | P34: 882 | Q34: 252 | R34: 648
B35: Abril | C35: 11,794 | D35: =+C35/30 -> 393 | E35: 6,966 | F35: 4,828 | G35: 10,765 | H35: =+G35/30 -> 359 | I35: 10,765 | K35: - | L35: 4,567 | M35: 677 | N35: 1,403 | O35: 968 | P35: 633 | Q35: 248 | R35: 638
B36: Mayo | C36: 12,475 | D36: =+C36/31 -> 402 | E36: 7,245 | F36: 5,230 | G36: 9,822 | H36: =+G36/31 -> 317 | I36: 9,822 | K36: - | L36: 4,755 | M36: 758 | N36: 980 | O36: 1,057 | P36: 1,106 | Q36: 237 | R36: 617
B37: Junio | C37: 11,192 | D37: =+C37/30 -> 373 | E37: 6,690 | F37: 4,503 | G37: 9,596 | H37: =+G37/30 -> 320 | I37: 9,596 | K37: - | L37: 4,540 | M37: 721 | N37: 976 | O37: 952 | P37: 748 | Q37: 234 | R37: 910
B38: Julio | C38: 12,433 | D38: =+C38/31 -> 401 | E38: 7,079 | F38: 5,354 | G38: 11,678 | H38: =+G38/31 -> 377 | I38: 11,678 | K38: - | L38: 5,210 | M38: 736 | N38: 1,361 | O38: 1,132 | P38: 864 | Q38: 263 | R38: 854
B39: Agosto | C39: 12,900 | D39: =+C39/31 -> 416 | E39: 7,277 | F39: 5,623 | G39: 11,945 | H39: =+G39/31 -> 385 | I39: 11,945 | K39: - | L39: 5,205 | M39: 761 | N39: 1,227 | O39: 1,206 | P39: 908 | Q39: 239 | R39: 863
B40: Septiembre | C40: 12,639 | D40: =+C40/30 -> 421 | E40: 6,968 | F40: 5,672 | G40: 11,618 | H40: =+G40/30 -> 387 | I40: 11,618 | K40: - | L40: 4,819 | M40: 972 | N40: 1,060 | O40: 1,048 | P40: 682 | Q40: 213 | R40: 844
B41: Octubre | C41: 13,075 | D41: =+C41/31 -> 422 | E41: 7,355 | F41: 5,720 | G41: 11,682 | H41: =+G41/31 -> 377 | I41: 11,682 | K41: - | L41: 5,232 | M41: 925 | N41: 1,291 | O41: 1,156 | P41: 768 | Q41: 218 | R41: 874
B42: Noviembre | C42: 12,414 | D42: =+C42/30 -> 414 | E42: 7,088 | F42: 5,326 | G42: 11,827 | H42: =+G42/30 -> 394 | I42: 11,827 | K42: - | L42: 4,985 | M42: 1,271 | N42: 833 | O42: 1,160 | P42: 752 | Q42: 221 | R42: 749
B43: Diciembre | C43: 11,938 | D43: =+C43/31 -> 385 | E43: 7,021 | F43: 4,917 | G43: 11,132 | H43: =+G43/31 -> 359 | I43: 11,132 | K43: - | L43: 5,199 | M43: 1,314 | N43: 879 | O43: 1,128 | P43: 1,071 | Q43: 223 | R43: 584
A45: 2001 | B45: Enero-Diciembre | C45: =SUM(C46:C57) -> 148,746 | D45: =+C45/365 -> 408 | E45: =SUM(E46:E57) -> 82,929 | F45: =SUM(F46:F57) -> 65,817 | G45: =SUM(G46:G57) -> 134,851 | H45: =+G45/365 -> 369 | I45: =SUM(I46:I57) -> 134,851 | J45: =SUM(J46:J49) -> 0 | K45: - | L45: =SUM(L46:L57) -> 57,703 | M45: 10,946 | N45: 11,898 | O45: 13,450 | P45: 10,799 | Q45: 2,409 | R45: 8,200
B46: Enero | C46: =+E46+F46 -> 12,989 | D46: =+C46/31 -> 419 | E46: 7,261 | F46: 5,728 | G46: =SUM(I46:K46) -> 11,319 | H46: =+G46/31 -> 365 | I46: 11,319 | K46: - | L46: 4,822 | M46: 951 | N46: 991 | O46: 1,136 | P46: 822 | Q46: 206 | R46: =+L46-M46-N46-O46-P46-Q46 -> 716
B47: Febrero | C47: =+E47+F47 -> 11,421 | D47: =+C47/28 -> 408 | E47: 6,288 | F47: 5,132 | G47: =SUM(I47:K47) -> 10,112 | H47: =+G47/28 -> 361 | I47: 10,112 | K47: - | L47: 4,656 | M47: 694 | N47: 1,134 | O47: 1,122 | P47: 804 | Q47: 200 | R47: =+L47-M47-N47-O47-P47-Q47 -> 703
B48: Marzo | C48: 13,181 | D48: =+C48/31 -> 425 | E48: 7,340 | F48: 5,841 | G48: 12,036 | H48: =+G48/31 -> 388 | I48: 12,036 | K48: - | L48: 5,174 | M48: 1,063 | N48: 969 | O48: 1,299 | P48: 807 | Q48: 212 | R48: 824
B49: Abril | C49: 12,680 | D49: =+C49/30 -> 423 | E49: 6,965 | F49: 5,714 | G49: 11,576 | H49: =+G49/30 -> 386 | I49: 11,576 | K49: - | L49: 4,992 | M49: 830 | N49: 1,215 | O49: 1,147 | P49: 888 | Q49: 209 | R49: 703
B50: Mayo | C50: 13,024 | D50: =+C50/31 -> 420 | E50: 7,130 | F50: 5,894 | G50: 12,049 | H50: =+G50/31 -> 389 | I50: 12,049 | K50: - | L50: 4,986 | M50: 893 | N50: 1,038 | O50: 1,159 | P50: 1,048 | Q50: 212 | R50: 636
B51: Junio | C51: 11,328 | D51: =+C51/30 -> 378 | E51: 6,294 | F51: 5,034 | G51: 9,115 | H51: =+G51/30 -> 304 | I51: 9,115 | K51: - | L51: 4,713 | M51: 748 | N51: 1,247 | O51: 1,231 | P51: 671 | Q51: 197 | R51: 619
B52: Julio | C52: 12,596 | D52: =+C52/31 -> 406 | E52: 6,971 | F52: 5,625 | G52: 11,917 | H52: =+G52/31 -> 384 | I52: 11,917 | K52: - | L52: 5,016 | M52: 916 | N52: 1,086 | O52: 1,193 | P52: 783 | Q52: 226 | R52: 810
B53: Agosto | C53: 12,710 | D53: =+C53/31 -> 410 | E53: 7,107 | F53: 5,603 | G53: 11,429 | H53: =+G53/31 -> 369 | I53: 11,429 | K53: - | L53: 5,180 | M53: 661 | N53: 1,174 | O53: 1,111 | P53: 1,207 | Q53: 211 | R53: 816
B54: Septiembre | C54: 12,076 | D54: =+C54/30 -> 403 | E54: 6,819 | F54: 5,257 | G54: 11,145 | H54: =+G54/30 -> 372 | I54: 11,145 | K54: - | L54: 2,779 | M54: 710 | N54: 358 | O54: 645 | P54: 699 | Q54: 120 | R54: 247
B55: Octubre | C55: 12,457 | D55: =+C55/31 -> 402 | E55: 7,021 | F55: 5,436 | G55: 11,476 | H55: =+G55/31 -> 370 | I55: 11,476 | K55: - | L55: 4,958 | M55: 1,149 | N55: 812 | O55: 985 | P55: 1,059 | Q55: 218 | R55: 736
B56: Noviembre | C56: 12,051 | D56: =+C56/30 -> 402 | E56: 6,756 | F56: 5,295 | G56: 11,028 | H56: =+G56/30 -> 368 | I56: 11,028 | K56: - | L56: 5,300 | M56: 1,169 | N56: 960 | O56: 1,227 | P56: 1,018 | Q56: 212 | R56: 715
B57: Diciembre | C57: 12,234 | D57: =+C57/31 -> 395 | E57: 6,977 | F57: 5,257 | G57: 11,650 | H57: =+G57/31 -> 376 | I57: 11,650 | K57: - | L57: 5,127 | M57: 1,163 | N57: 914 | O57: 1,194 | P57: 993 | Q57: 186 | R57: 676
A59: 2002 | B59: Enero-Diciembre | C59: =SUM(C60:C71) -> 143,758 | D59: =+C59/365 -> 394 | E59: =SUM(E60:E71) -> 80,774 | F59: =SUM(F60:F71) -> 62,984 | G59: =SUM(G60:G71) -> 132,238 | H59: =+G59/365 -> 362 | I59: =SUM(I60:I71) -> 132,238 | J59: =SUM(J60:J63) -> 755 | K59: =SUM(K60:K71) -> 0 | L59: 55,467 | M59: 11,354 | N59: 10,741 | O59: 12,439 | P59: 10,163 | Q59: 2,060 | R59: 8,710
B60: Enero | C60: =+E60+F60 -> 12,208 | D60: =+C60/31 -> 394 | E60: 7,057 | F60: 5,150 | G60: 11,240 | H60: =+G60/31 -> 363 | I60: 11,240 | J60: 10 | K60: 0 | L60: 4,902 | M60: 980 | N60: 1,074 | O60: 1,028 | P60: 876 | Q60: 193 | R60: =+L60-M60-N60-O60-P60-Q60 -> 751
B61: Febrero | C61: 10,633 | D61: =+C61/28 -> 380 | E61: 6,081 | F61: 4,552 | G61: 10,341 | H61: =+G61/28 -> 369 | I61: 10,341 | J61: 207 | K61: 0 | L61: 4,452 | M61: 950 | N61: 949 | O61: 1,170 | P61: 679 | Q61: 200 | R61: 504
B62: Marzo | C62: 12,015 | D62: =+C62/31 -> 388 | E62: 6,874 | F62: 5,141 | G62: 11,218 | H62: =+G62/31 -> 362 | I62: 11,218 | J62: - | K62: 0 | L62: 4,558 | M62: 864 | N62: 862 | O62: 1,127 | P62: 843 | Q62: 124 | R62: 739
B63: Abril | C63: 11,894 | D63: =+C63/30 -> 396 | E63: 6,675 | F63: 5,219 | G63: 10,459 | H63: =+G63/30 -> 349 | I63: 10,459 | J63: 538 | K63: 0 | L63: 4,174 | M63: 927 | N63: 715 | O63: 979 | P63: 790 | Q63: 88 | R63: 675
B64: Mayo | C64: 12,330 | D64: =+C64/31 -> 398 | E64: 6,896 | F64: 5,433 | G64: 11,575 | H64: =+G64/31 -> 373 | I64: 11,575 | J64: 275 | K64: 0 | L64: 4,872 | M64: 830 | N64: 925 | O64: 1,053 | P64: 971 | Q64: 164 | R64: 929
B65: Junio | C65: 11,977 | D65: =+C65/30 -> 399 | E65: 6,650 | F65: 5,327 | G65: 9,817 | H65: =+G65/30 -> 327 | I65: 9,817 | J65: 268 | K65: 0 | L65: 4,808 | M65: 835 | N65: 1,150 | O65: 1,196 | P65: 708 | Q65: 190 | R65: 729
B66: Julio | C66: 12,241 | D66: 395 | E66: 6,967 | F66: 5,274 | G66: 11,293 | H66: 364 | I66: 11,293 | J66: 363 | K66: 0 | L66: 4,039 | M66: 742 | N66: 779 | O66: 870 | P66: 898 | Q66: 154 | R66: 594
B67: Agosto | C67: 12,193 | D67: 393 | E67: 6,817 | F67: 5,376 | G67: 12,047 | H67: 389 | I67: 12,047 | J67: 274 | K67: 0 | L67: 4,150 | M67: 812 | N67: 791 | O67: 916 | P67: 760 | Q67: 194 | R67: 677
B68: Septiembre | C68: 12,099 | D68: =+C68/30 -> 403 | E68: 6,716 | F68: 5,383 | G68: 10,977 | H68: =+G68/30 -> 366 | I68: 10,977 | J68: - | K68: 0 | L68: 5,318 | M68: 1,027 | N68: 930 | O68: 1,120 | P68: 1,117 | Q68: 221 | R68: 902
B69: Octubre | C69: 12,149 | D69: 392 | E69: 6,772 | F69: 5,377 | G69: 11,346 | H69: 366 | I69: 11,346 | J69: - | K69: 0 | L69: 4,504 | M69: 1,350 | N69: 735 | O69: 966 | P69: 756 | Q69: 197 | R69: 501
B70: Noviembre | C70: 11,853 | D70: =+C70/30 -> 395 | E70: 6,536 | F70: 5,317 | G70: 10,664 | H70: =+G70/30 -> 355 | I70: 10,664 | J70: - | K70: 0 | L70: 4,821 | M70: 985 | N70: 906 | O70: 1,037 | P70: 826 | Q70: 181 | R70: 885
B71: Diciembre | C71: 12,167 | D71: 392 | E71: 6,732 | F71: 5,435 | G71: 11,260 | H71: 363 | I71: 11,260 | J71: 334 | K71: 0 | L71: 4,868 | M71: 1,051 | N71: 924 | O71: 977 | P71: 938 | Q71: 153 | R71: 825
A73: 2003 | B73: Enero-Diciembre | C73: =SUM(C74:C85) -> 153,518 | D73: =+C73/365 -> 421 | E73: =SUM(E74:E85) -> 74,514 | F73: =SUM(F74:F85) -> 79,004 | G73: =SUM(G74:G85) -> 139,144 | H73: =+G73/365 -> 381 | I73: =SUM(I74:I85) -> 120,954 | J73: =SUM(J74:J77) -> 473 | K73: =SUM(K74:K85) -> 18,190 | L73: 55,431 | M73: 10,812 | N73: 8,879 | O73: 10,961 | P73: 10,028 | Q73: 2,230 | R73: 12,521
B74: Enero | C74: =+E74+F74 -> 12,194 | D74: =+C74/31 -> 393 | E74: 6,515 | F74: 5,679 | G74: =+I74+K74 -> 11,418 | H74: =+G74/31 -> 368 | I74: 11,418 | J74: 109 | K74: 0 | L74: 4,601 | M74: 978 | N74: 785 | O74: 914 | P74: 974 | Q74: 178 | R74: =+L74-M74-N74-O74-P74-Q74 -> 771
B75: Febrero | C75: 10,772 | D75: =+C75/28 -> 385 | E75: 5,796 | F75: 4,976 | G75: =+I75+K75 -> 9,853 | H75: =+G75/28 -> 352 | I75: 9,853 | J75: - | K75: 0 | L75: 4,168 | M75: 1,115 | N75: 367 | O75: 691 | P75: 840 | Q75: 187 | R75: 968
B76: Marzo | C76: 12,019 | D76: =+C76/31 -> 388 | E76: 6,507 | F76: 5,512 | G76: 10,352 | H76: =+G76/31 -> 334 | I76: 10,352 | J76: - | K76: 0 | L76: 4,572 | M76: 1,032 | N76: 649 | O76: 888 | P76: 791 | Q76: 180 | R76: 1,032
B77: Abril | C77: 11,546 | D77: =+C77/30 -> 385 | E77: 6,260 | F77: 5,285 | G77: 9,554 | H77: =+G77/30 -> 318 | I77: 9,554 | J77: 363 | K77: 0 | L77: 4,419 | M77: 858 | N77: 718 | O77: 885 | P77: 919 | Q77: 104 | R77: 935
B78: Mayo | C78: 10,247 | D78: =+C78/31 -> 331 | E78: 5,900 | F78: 4,347 | G78: 8,809 | H78: =+G78/31 -> 284 | I78: 8,809 | J78: 496 | K78: 0 | L78: 5,049 | M78: 900 | N78: 974 | O78: 1,015 | P78: 983 | Q78: 184 | R78: 993
B79: Junio | C79: 10,969 | D79: =+C79/30 -> 366 | E79: 5,993 | F79: 4,976 | G79: 9,934 | H79: =+G79/30 -> 331 | I79: 9,934 | J79: 416 | K79: 0 | L79: 4,512 | M79: 675 | N79: 853 | O79: 999 | P79: 771 | Q79: 166 | R79: 1,048
B80: Julio | C80: 12,432 | D80: 401 | E80: 6,368 | F80: 6,064 | G80: 11,138 | H80: 359 | I80: 11,138 | J80: 342 | K80: 0 | L80: 4,094 | M80: 815 | N80: 691 | O80: 734 | P80: 611 | Q80: 201 | R80: 1,042
B81: Agosto | C81: 13,128 | D81: 423 | E81: 6,350 | F81: 6,778 | G81: 11,210 | H81: 362 | I81: 11,210 | J81: 450 | L81: 4,948 | M81: 764 | N81: 933 | O81: 1,157 | P81: 803 | Q81: 188 | R81: 1,104
B82: Septiembre | C82: 14,544 | D82: =+C82/30 -> 485 | E82: 6,165 | F82: 8,380 | G82: 13,612 | H82: =+G82/30 -> 454 | I82: 9,707 | J82: 313 | K82: 3,904 | L82: 4,095 | M82: 735 | N82: 643 | O82: 784 | P82: 689 | Q82: 198 | R82: 1,046
B83: Octubre | C83: 15,317 | D83: 494 | E83: 6,334 | F83: 8,983 | G83: 14,645 | H83: 472 | I83: 9,737 | J83: - | K83: 4,908 | L83: 4,941 | M83: 890 | N83: 847 | O83: 852 | P83: 896 | Q83: 212 | R83: 1,244
B84: Noviembre | C84: 14,907 | D84: =+C84/30 -> 497 | E84: 6,050 | F84: 8,857 | G84: 13,873 | H84: =+G84/30 -> 462 | I84: 8,895 | J84: - | K84: 4,978 | L84: 4,628 | M84: 1,031 | N84: 634 | O84: 904 | P84: 849 | Q84: 215 | R84: 996
B85: Diciembre | C85: 15,444 | D85: 498 | E85: 6,275 | F85: 9,169 | G85: 14,746 | H85: 476 | I85: 10,346 | J85: - | K85: 4,400 | L85: 5,405 | M85: 1,018 | N85: 784 | O85: 1,139 | P85: 903 | Q85: 219 | R85: 1,342
A87: 2004 | B87: Enero-Diciembre | C87: =SUM(C88:C99) -> 192,383 | D87: =+C87/366 -> 526 | E87: =SUM(E88:E99) -> 71,943 | F87: =SUM(F88:F99) -> 120,440 | G87: =SUM(G88:G99) -> 180,810 | H87: =+G87/366 -> 494 | I87: =SUM(I88:I99) -> 118,436 | J87: =SUM(J88:J91) -> 0 | K87: =SUM(K88:K99) -> 62,374 | L87: 60,639 | M87: 11,268 | N87: 10,012 | O87: 11,866 | P87: 10,312 | Q87: 2,184 | R87: 14,996
B88: Enero | C88: =+E88+F88 -> 15,728 | D88: =+C88/31 -> 507 | E88: 6,131 | F88: 9,597 | G88: =+I88+K88 -> 14,066 | H88: =+G88/31 -> 454 | I88: 9,739 | J88: - | K88: 4,327 | L88: 4,999 | M88: 963 | N88: 693 | O88: 998 | P88: 851 | Q88: 230 | R88: =+L88-M88-N88-O88-P88-Q88 -> 1,265
B89: Febrero | C89: 15,163 | D89: =+C89/29 -> 523 | E89: 5,639 | F89: 9,524 | G89: =+I89+K89 -> 14,431 | H89: =+G89/29 -> 498 | I89: 9,300 | J89: - | K89: 5,131 | L89: 4,630 | M89: 1,065 | N89: 702 | O89: 869 | P89: 862 | Q89: 169 | R89: 962
B90: Marzo | C90: 15,211 | D90: =+C90/31 -> 491 | E90: 5,242 | F90: 9,969 | G90: 13,074 | H90: =+G90/31 -> 422 | I90: 5,899 | J90: - | K90: 7,174 | L90: 4,784 | M90: 980 | N90: 870 | O90: 998 | P90: 619 | Q90: 189 | R90: 1,128
B91: Abril | C91: 15,992 | D91: =+C91/30 -> 533 | E91: 5,805 | F91: 10,188 | G91: 15,262 | H91: =+G91/30 -> 509 | I91: 9,684 | J91: - | K91: 5,578 | L91: 5,095 | M91: 953 | N91: 797 | O91: 916 | P91: 966 | Q91: 193 | R91: 1,269
B92: Mayo | C92: 16,404 | D92: =+C92/31 -> 529 | E92: 6,109 | F92: 10,296 | G92: 16,316 | H92: =+G92/31 -> 526 | I92: 11,264 | J92: - | K92: 5,053 | L92: 5,445 | M92: 1,056 | N92: 925 | O92: 1,123 | P92: 953 | Q92: 170 | R92: 1,218
B93: Junio | C93: 16,127 | D93: =+C93/30 -> 538 | E93: 5,887 | F93: 10,240 | G93: 14,698 | H93: =+G93/30 -> 490 | I93: 9,456 | J93: - | K93: 5,242 | L93: 5,168 | M93: 857 | N93: 1,097 | O93: 1,062 | P93: 835 | Q93: 151 | R93: 1,165
B94: Julio | C94: 16,451 | D94: 531 | E94: 6,210 | F94: 10,241 | G94: 16,041 | H94: 517 | I94: 10,654 | J94: - | K94: 5,388 | L94: 4,853 | M94: 806 | N94: 960 | O94: 867 | P94: 879 | Q94: 208 | R94: 1,133
B95: Agosto | C95: 16,475 | D95: 531 | E95: 6,205 | F95: 10,269 | G95: 15,477 | H95: 499 | I95: 10,520 | J95: - | K95: 4,957 | L95: 4,804 | M95: 724 | N95: 817 | O95: 907 | P95: 794 | Q95: 210 | R95: 1,352
B96: Septiembre | C96: 15,728 | D96: =+C96/30 -> 524 | E96: 6,050 | F96: 9,678 | G96: 15,310 | H96: =+G96/30 -> 510 | I96: 10,420 | J96: - | K96: 4,890 | L96: 5,335 | M96: 776 | N96: 903 | O96: 1,023 | P96: 769 | Q96: 195 | R96: 1,669
B97: Octubre | C97: 16,408 | D97: 529 | E97: 6,293 | F97: 10,115 | G97: 15,797 | H97: 510 | I97: 10,954 | J97: - | K97: 4,844 | L97: 5,416 | M97: 1,105 | N97: 820 | O97: 1,111 | P97: 1,018 | Q97: 207 | R97: 1,157
B98: Noviembre | C98: 16,011 | D98: =+C98/30 -> 534 | E98: 6,074 | F98: 9,937 | G98: 14,838 | H98: =+G98/30 -> 495 | I98: 10,068 | J98: - | K98: 4,770 | L98: 5,004 | M98: 1,027 | N98: 750 | O98: 1,010 | P98: 867 | Q98: 163 | R98: 1,186
B99: Diciembre | C99: 16,684 | D99: 538 | E99: 6,298 | F99: 10,386 | G99: 15,499 | H99: 500 | I99: 10,478 | J99: - | K99: 5,021 | L99: 5,107 | M99: 955 | N99: 676 | O99: 982 | P99: 900 | Q99: 100 | R99: 1,494
A101: 2005 | B101: Enero-Diciembre | C101: =SUM(C102:C113) -> 194,172 | D101: =+C101/365 -> 532 | E101: =SUM(E102:E113) -> 70,972 | F101: =SUM(F102:F113) -> 123,200 | G101: =SUM(G102:G113) -> 178,646 | H101: =+G101/365 -> 489 | I101: =SUM(I102:I113) -> 120,916 | J101: =SUM(J102:J105) -> 0 | K101: =SUM(K102:K113) -> 57,730 | L101: 59,049 | M101: 10,439 | N101: 8,023 | O101: 12,337 | P101: 10,628 | Q101: 2,122 | R101: 15,500
B102: Enero | C102: =+E102+F102 -> 16,485 | D102: =+C102/31 -> 532 | E102: 6,264 | F102: 10,221 | G102: =+I102+K102 -> 15,062 | H102: =+G102/31 -> 486 | I102: 10,170 | J102: - | K102: 4,892 | L102: 5,452 | M102: 944 | N102: 848 | O102: 1,107 | P102: 962 | Q102: 232 | R102: =+L102-M102-N102-O102-P102-Q102 -> 1,360
B103: Febrero | C103: 15,045 | D103: =+C103/28 -> 537 | E103: 5,647 | F103: 9,398 | G103: =+I103+K103 -> 13,927 | H103: =+G103/28 -> 497 | I103: 9,584 | J103: - | K103: 4,344 | L103: 4,187 | M103: 835 | N103: 308 | O103: 836 | P103: 770 | Q103: 204 | R103: 1,235
B104: Marzo | C104: 16,367 | D104: =+C104/31 -> 528 | E104: 6,269 | F104: 10,098 | G104: 14,943 | H104: =+G104/31 -> 482 | I104: 10,046 | J104: - | K104: 4,897 | L104: 5,180 | M104: 719 | N104: 906 | O104: 1,165 | P104: 881 | Q104: 223 | R104: 1,286
B105: Abril | C105: 15,680 | D105: =+C105/30 -> 523 | E105: 5,932 | F105: 9,748 | G105: 14,643 | H105: =+G105/30 -> 488 | I105: 10,091 | J105: - | K105: 4,553 | L105: 5,189 | M105: 802 | N105: 800 | O105: 1,068 | P105: 944 | Q105: 172 | R105: 1,403
B106: Mayo | C106: 16,313 | D106: =+C106/31 -> 526 | E106: 6,078 | F106: 10,235 | G106: 14,616 | H106: =+G106/31 -> 471 | I106: 10,077 | J106: - | K106: 4,539 | L106: 5,204 | M106: 827 | N106: 799 | O106: 1,057 | P106: 996 | Q106: 211 | R106: 1,315
B107: Junio | C107: 16,436 | D107: =+C107/30 -> 548 | E107: 5,986 | F107: 10,450 | G107: 15,193 | H107: =+G107/30 -> 506 | I107: 10,364 | J107: - | K107: 4,829 | L107: 4,706 | M107: 753 | N107: 715 | O107: 1,074 | P107: 738 | Q107: 100 | R107: 1,326
B108: Julio | C108: 16,977 | D108: 548 | E108: 6,218 | F108: 10,759 | G108: 15,221 | H108: 491 | I108: 10,716 | J108: - | K108: 4,504 | L108: 4,554 | M108: 869 | N108: 558 | O108: 1,002 | P108: 814 | Q108: 68 | R108: 1,244
B109: Agosto | C109: 14,788 | D109: 477 | E109: 4,997 | F109: 9,791 | G109: 13,592 | H109: 438 | I109: 8,493 | J109: - | K109: 5,098 | L109: 4,612 | M109: 853 | N109: 659 | O109: 1,023 | P109: 752 | Q109: 70 | R109: 1,255
B110: Septiembre | C110: 16,251 | D110: =+C110/30 -> 542 | E110: 5,889 | F110: 10,362 | G110: 14,738 | H110: =+G110/30 -> 491 | I110: 9,723 | J110: - | K110: 5,015 | L110: 5,139 | M110: 933 | N110: 581 | O110: 1,109 | P110: 921 | Q110: 207 | R110: 1,388
B111: Octubre | C111: 16,563 | D111: 534 | E111: 6,026 | F111: 10,537 | G111: 15,376 | H111: 496 | I111: 10,427 | J111: - | K111: 4,949 | L111: 4,917 | M111: 940 | N111: 593 | O111: 904 | P111: 1,078 | Q111: 225 | R111: 1,178
B112: Noviembre | C112: 16,058 | D112: =+C112/30 -> 535 | E112: 5,695 | F112: 10,363 | G112: 14,912 | H112: =+G112/30 -> 497 | I112: 10,048 | J112: - | K112: 4,865 | L112: 4,642 | M112: 873 | N112: 439 | O112: 972 | P112: 919 | Q112: 224 | R112: 1,215
B113: Diciembre | C113: 17,208 | D113: 555 | E113: 5,970 | F113: 11,238 | G113: 16,422 | H113: 530 | I113: 11,177 | J113: - | K113: 5,245 | L113: 5,267 | M113: 1,093 | N113: 817 | O113: 1,021 | P113: 854 | Q113: 187 | R113: 1,296
A115: 2006 | B115: Enero-Diciembre | C115: =SUM(C116:C127) -> 195,651 | D115: =+C115/365 -> 536 | E115: =SUM(E116:E127) -> 90,438 | F115: =SUM(F116:F127) -> 105,213 | G115: =SUM(G116:G127) -> 184,038 | H115: =+G115/365 -> 504 | I115: =SUM(I116:I127) -> 126,159 | J115: =SUM(J116:J119) -> 0 | K115: =SUM(K116:K127) -> 57,879 | L115: 62,902 | M115: 9,810 | N115: 11,785 | O115: 12,056 | P115: 11,355 | Q115: 2,114 | R115: 15,782
B116: Enero | C116: =+E116+F116 -> 17,325 | D116: =+C116/31 -> 559 | E116: 6,085 | F116: 11,240 | G116: =+I116+K116 -> 15,963 | H116: =+G116/31 -> 515 | I116: 10,968 | J116: - | K116: 4,995 | L116: 4,817 | M116: 638 | N116: 718 | O116: 968 | P116: 1,103 | Q116: 186 | R116: =+L116-M116-N116-O116-P116-Q116 -> 1,204
B117: Febrero | C117: 15,433 | D117: =+C117/28 -> 551 | E117: 5,603 | F117: 9,830 | G117: =+I117+K117 -> 14,299 | H117: =+G117/28 -> 511 | I117: 9,687 | J117: - | K117: 4,612 | L117: 3,940 | M117: 868 | N117: 638 | O117: 681 | P117: 658 | Q117: 161 | R117: 933
B118: Marzo | C118: 16,379 | D118: =+C118/31 -> 528 | E118: 5,658 | F118: 10,721 | G118: 15,911 | H118: =+G118/31 -> 513 | I118: 11,159 | J118: - | K118: 4,751 | L118: 5,021 | M118: 1,132 | N118: 810 | O118: 836 | P118: 966 | Q118: 156 | R118: 1,122
B119: Abril | C119: 16,379 | D119: =+C119/30 -> 546 | E119: 5,984 | F119: 10,395 | G119: 15,237 | H119: =+G119/30 -> 508 | I119: 10,577 | J119: - | K119: 4,660 | L119: 5,594 | M119: 881 | N119: 1,069 | O119: 954 | P119: 839 | Q119: 186 | R119: 1,665
B120: Mayo | C120: 16,947 | D120: =+C120/31 -> 547 | E120: 7,705 | F120: 9,242 | G120: 15,762 | H120: =+G120/31 -> 508 | I120: 10,913 | J120: - | K120: 4,849 | L120: 5,090 | M120: 711 | N120: 927 | O120: 1,030 | P120: 1,046 | Q120: 187 | R120: 1,189
B121: Junio | C121: 16,072 | D121: =+C121/30 -> 536 | E121: 8,731 | F121: 7,341 | G121: 15,073 | H121: =+G121/30 -> 502 | I121: 10,308 | J121: - | K121: 4,765 | L121: 5,565 | M121: 700 | N121: 1,447 | O121: 1,104 | P121: 912 | Q121: 165 | R121: 1,237
B122: Julio | C122: 16,830 | D122: 543 | E122: 8,990 | F122: 7,840 | G122: 15,334 | H122: 495 | I122: 10,449 | J122: - | K122: 4,885 | L122: 5,175 | M122: 861 | N122: 972 | O122: 1,103 | P122: 867 | Q122: 103 | R122: 1,270
B123: Agosto | C123: 16,870 | D123: 544 | E123: 8,916 | F123: 7,954 | G123: 15,883 | H123: 512 | I123: 10,847 | J123: - | K123: 5,036 | L123: 5,679 | M123: 669 | N123: 1,221 | O123: 1,164 | P123: 920 | Q123: 196 | R123: 1,509
B124: Septiembre | C124: 16,000 | D124: =+C124/30 -> 533 | E124: 8,265 | F124: 7,735 | G124: 15,112 | H124: =+G124/30 -> 504 | I124: 10,315 | J124: - | K124: 4,797 | L124: 5,662 | M124: 728 | N124: 1,185 | O124: 1,033 | P124: 1,091 | Q124: 213 | R124: 1,412
B125: Octubre | C125: 16,095 | D125: 519 | E125: 8,311 | F125: 7,784 | G125: 15,249 | H125: 492 | I125: 10,301 | J125: - | K125: 4,948 | L125: 6,028 | M125: 710 | N125: 1,393 | O125: 1,039 | P125: 1,028 | Q125: 209 | R125: 1,649
B126: Noviembre | C126: 15,343 | D126: =+C126/30 -> 511 | E126: 7,992 | F126: 7,352 | G126: 14,952 | H126: =+G126/30 -> 498 | I126: 10,257 | J126: - | K126: 4,695 | L126: 4,829 | M126: 929 | N126: 591 | O126: 1,112 | P126: 822 | Q126: 182 | R126: 1,193
B127: Diciembre | C127: 15,977 | D127: 515 | E127: 8,200 | F127: 7,777 | G127: 15,264 | H127: 492 | I127: 10,377 | J127: - | K127: 4,887 | L127: 5,500 | M127: 983 | N127: 814 | O127: 1,031 | P127: 1,103 | Q127: 170 | R127: 1,400
A129: 2007 | B129: Enero-Diciembre | C129: =SUM(C130:C141) -> 186,547 | D129: =+C129/365 -> 511 | E129: =SUM(E130:E141) -> 94,334 | F129: =SUM(F130:F141) -> 92,213 | G129: =SUM(G130:G141) -> 175,020 | H129: =+G129/365 -> 480 | I129: =SUM(I130:I141) -> 121,118 | J129: =SUM(J130:J133) -> 0 | K129: =SUM(K130:K141) -> 53,901 | L129: 65,139 | M129: 8,467 | N129: 13,663 | O129: 11,179 | P129: 12,629 | Q129: 1,401 | R129: 17,800
B130: Enero | C130: =+E130+F130 -> 16,030 | D130: =+C130/31 -> 517 | E130: =8102726.53/1000 -> 8,103 | F130: 7,927 | G130: =+I130+K130 -> 14,987 | H130: =+G130/31 -> 483 | I130: 10,090 | J130: - | K130: 4,897 | L130: 5,911 | M130: 659 | N130: 1,246 | O130: 942 | P130: 1,093 | Q130: 173 | R130: =+L130-M130-N130-O130-P130-Q130 -> 1,798
B131: Febrero | C131: 14,202 | D131: =+C131/28 -> 507 | E131: =7122951.61/1000 -> 7,123 | F131: 7,079 | G131: =+I131+K131 -> 13,558 | H131: =+G131/28 -> 484 | I131: 9,099 | J131: - | K131: 4,459 | L131: 4,774 | M131: 949 | N131: 617 | O131: 956 | P131: 1,120 | Q131: 67 | R131: 1,065
B132: Marzo | C132: 14,944 | D132: =+C132/31 -> 482 | E132: =7848470.42/1000 -> 7,848 | F132: 7,096 | G132: 13,995 | H132: =+G132/31 -> 451 | I132: 9,116 | J132: - | K132: 4,880 | L132: 5,313 | M132: 656 | N132: 1,412 | O132: 934 | P132: 901 | Q132: 46 | R132: 1,364
B133: Abril | C133: 15,062 | D133: =+C133/30 -> 502 | E133: =7528415.59/1000 -> 7,528 | F133: 7,533 | G133: 13,655 | H133: =+G133/30 -> 455 | I133: 9,274 | J133: - | K133: 4,381 | L133: 4,674 | M133: 473 | N133: 762 | O133: 944 | P133: 974 | Q133: 41 | R133: 1,478
B134: Mayo | C134: 15,862 | D134: =+C134/31 -> 512 | E134: =7804708.95/1000 -> 7,805 | F134: 8,058 | G134: 14,573 | H134: =+G134/31 -> 470 | I134: 9,925 | J134: - | K134: 4,648 | L134: 4,206 | M134: 719 | N134: 850 | O134: 437 | P134: 819 | Q134: 43 | R134: 1,338
B135: Junio | C135: 15,439 | D135: =+C135/30 -> 515 | E135: =7656582.04/1000 -> 7,657 | F135: 7,782 | G135: 14,631 | H135: =+G135/30 -> 488 | I135: 10,291 | J135: - | K135: 4,339 | L135: 4,993 | M135: 709 | N135: 816 | O135: 984 | P135: 1,102 | Q135: 68 | R135: 1,314
B136: Julio | C136: 15,800 | D136: 510 | E136: =7880085.56/1000 -> 7,880 | F136: 7,919 | G136: 15,249 | H136: 492 | I136: 10,972 | J136: - | K136: 4,277 | L136: 5,656 | M136: 724 | N136: 1,131 | O136: 1,026 | P136: 909 | Q136: 196 | R136: 1,669
B137: Agosto | C137: 15,756 | D137: 508 | E137: 8,041 | F137: 7,715 | G137: 15,253 | H137: 492 | I137: 10,814 | J137: - | K137: 4,440 | L137: 6,242 | M137: 728 | N137: 1,363 | O137: 1,218 | P137: 1,166 | Q137: 192 | R137: 1,575
B138: Septiembre | C138: 15,506 | D138: =+C138/30 -> 517 | E138: 7,864 | F138: 7,642 | G138: 14,264 | H138: =+G138/30 -> 475 | I138: 10,064 | J138: - | K138: 4,200 | L138: 5,551 | M138: 689 | N138: 1,393 | O138: 985 | P138: 1,087 | Q138: 165 | R138: 1,232
B139: Octubre | C139: 15,921 | D139: 514 | E139: 8,136 | F139: 7,785 | G139: 14,833 | H139: 478 | I139: 10,330 | J139: - | K139: 4,504 | L139: 5,735 | M139: 755 | N139: 1,160 | O139: 1,018 | P139: 982 | Q139: 129 | R139: 1,692
B140: Noviembre | C140: 15,541 | D140: =+C140/30 -> 518 | E140: 7,894 | F140: 7,647 | G140: 14,440 | H140: =+G140/30 -> 481 | I140: 10,042 | J140: - | K140: 4,398 | L140: 5,779 | M140: 666 | N140: 1,457 | O140: 719 | P140: 1,273 | Q140: 126 | R140: 1,538
B141: Diciembre | C141: 16,483 | D141: 532 | E141: 8,455 | F141: 8,028 | G141: 15,581 | H141: 503 | I141: 11,103 | J141: - | K141: 4,478 | L141: 6,303 | M141: 739 | N141: 1,455 | O141: 1,015 | P141: 1,203 | Q141: 154 | R141: 1,737
A143: 2008 | B143: Enero-Diciembre | C143: =SUM(C144:C155) -> 184,727 | D143: =+C143/366 -> 505 | E143: =SUM(E144:E155) -> 97,571 | F143: =SUM(F144:F155) -> 87,157 | G143: =SUM(G144:G155) -> 175,055 | H143: =+G143/366 -> 478 | I143: =SUM(I144:I155) -> 126,542 | J143: =SUM(J144:J147) -> 0 | K143: =SUM(K144:K155) -> 48,513 | L143: 67,553 | M143: 8,862 | N143: 13,366 | O143: 11,188 | P143: 13,308 | Q143: 2,073 | R143: 18,756
B144: Enero | C144: =+E144+F144 -> 16,129 | D144: =+C144/31 -> 520 | E144: 8,242 | F144: 7,886 | G144: =+I144+K144 -> 15,844 | H144: =+G144/31 -> 511 | I144: =10871880.6/1000 -> 10,872 | J144: - | K144: 4,972 | L144: 5,638 | M144: 742 | N144: 1,218 | O144: 893 | P144: 968 | Q144: 154 | R144: =+L144-M144-N144-O144-P144-Q144 -> 1,663
B145: Febrero | C145: 15,041 | D145: =+C145/29 -> 519 | E145: 7,731 | F145: 7,310 | G145: =+I145+K145 -> 13,260 | H145: =+G145/29 -> 457 | I145: 9,330 | J145: - | K145: 3,930 | L145: 4,935 | M145: 833 | N145: 948 | O145: 702 | P145: 881 | Q145: 132 | R145: 1,439
B146: Marzo | C146: 15,746 | D146: =+C146/31 -> 508 | E146: 8,212 | F146: 7,535 | G146: 15,402 | H146: =+G146/31 -> 497 | I146: 10,352 | J146: - | K146: 5,050 | L146: 5,797 | M146: 934 | N146: 901 | O146: 1,007 | P146: 1,301 | Q146: 161 | R146: 1,492
B147: Abril | C147: 15,308 | D147: =+C147/30 -> 510 | E147: 7,853 | F147: 7,456 | G147: 14,792 | H147: =+G147/30 -> 493 | I147: 10,653 | J147: - | K147: 4,139 | L147: 5,540 | M147: 727 | N147: 1,208 | O147: 636 | P147: 1,056 | Q147: 154 | R147: 1,760
B148: Mayo | C148: 15,467 | D148: =+C148/31 -> 499 | E148: 8,040 | F148: 7,428 | G148: 14,378 | H148: =+G148/31 -> 464 | I148: 10,096 | J148: - | K148: 4,282 | L148: 5,409 | M148: 746 | N148: 1,138 | O148: 1,017 | P148: 1,199 | Q148: 171 | R148: 1,138
B149: Junio | C149: 14,844 | D149: =+C149/30 -> 495 | E149: 7,787 | F149: 7,057 | G149: 14,433 | H149: =+G149/30 -> 481 | I149: 10,437 | J149: - | K149: 3,996 | L149: 5,464 | M149: 731 | N149: 954 | O149: 1,014 | P149: 1,036 | Q149: 187 | R149: 1,541
B150: Julio | C150: 15,448 | D150: 498 | E150: 8,053 | F150: 7,395 | G150: 14,530 | H150: 469 | I150: 10,701 | J150: - | K150: 3,829 | L150: 5,288 | M150: 756 | N150: 845 | O150: 721 | P150: 1,028 | Q150: 109 | R150: 1,829
B151: Agosto | C151: 15,599 | D151: 503 | E151: 8,268 | F151: 7,331 | G151: 14,751 | H151: 476 | I151: 10,972 | J151: - | K151: 3,780 | L151: 6,195 | M151: 685 | N151: 1,540 | O151: 1,014 | P151: 1,237 | Q151: 220 | R151: 1,499
B152: Septiembre | C152: 14,955 | D152: =+C152/30 -> 498 | E152: 8,015 | F152: 6,940 | G152: 14,132 | H152: =+G152/30 -> 471 | I152: 10,472 | J152: - | K152: 3,660 | L152: 6,072 | M152: 704 | N152: 1,148 | O152: 1,063 | P152: 1,112 | Q152: 204 | R152: 1,841
B153: Octubre | C153: 15,403 | D153: 497 | E153: 8,302 | F153: 7,101 | G153: 14,493 | H153: 468 | I153: 10,927 | J153: - | K153: 3,566 | L153: 5,755 | M153: 743 | N153: 988 | O153: 1,018 | P153: 1,103 | Q153: 174 | R153: 1,729
B154: Noviembre | C154: 15,050 | D154: =+C154/30 -> 502 | E154: 8,284 | F154: 6,765 | G154: 14,093 | H154: =+G154/30 -> 470 | I154: 10,545 | J154: - | K154: 3,548 | L154: 5,639 | M154: 664 | N154: 1,258 | O154: 991 | P154: 1,075 | Q154: 195 | R154: 1,456
B155: Diciembre | C155: 15,737 | D155: 508 | E155: 8,783 | F155: 6,954 | G155: 14,948 | H155: 482 | I155: 11,186 | J155: - | K155: 3,762 | L155: 5,822 | M155: 598 | N155: 1,221 | O155: 1,112 | P155: 1,311 | Q155: 212 | R155: 1,369
A157: 2009 | B157: Enero-Diciembre | C157: =SUM(C158:C169) -> 177,414 | D157: =+C157/365 -> 486 | E157: =SUM(E158:E169) -> 102,768 | F157: =SUM(F158:F169) -> 74,647 | G157: =SUM(G158:G169) -> 169,413 | H157: =+G157/365 -> 464 | I157: =SUM(I158:I169) -> 128,297 | J157: =SUM(J158:J161) -> 0 | K157: =SUM(K158:K169) -> 41,116 | L157: 68,545 | M157: 9,143 | N157: 10,571 | O157: 11,180 | P157: 14,265 | Q157: 2,159 | R157: 21,227
B158: Enero | C158: =+E158+F158 -> 15,609 | D158: =+C158/31 -> 504 | E158: 8,817 | F158: 6,792 | G158: =+I158+K158 -> 14,796 | H158: =+G158/31 -> 477 | I158: 11,059 | J158: - | K158: 3,737 | L158: 5,865 | M158: 727 | N158: 990 | O158: 1,123 | P158: 1,101 | Q158: 203 | R158: =+L158-M158-N158-O158-P158-Q158 -> 1,721
B159: Febrero | C159: 13,949 | D159: =+C159/28 -> 498 | E159: 7,875 | F159: 6,074 | G159: =+I159+K159 -> 12,924 | H159: =+G159/28 -> 462 | I159: 10,002 | J159: - | K159: 2,922 | L159: 5,247 | M159: 666 | N159: 694 | O159: 907 | P159: 1,121 | Q159: 180 | R159: 1,679
B160: Marzo | C160: 15,414 | D160: =+C160/31 -> 497 | E160: 8,667 | F160: 6,747 | G160: 15,227 | H160: =+G160/31 -> 491 | I160: 11,081 | J160: - | K160: 4,146 | L160: 5,643 | M160: 750 | N160: 1,004 | O160: 1,064 | P160: 1,229 | Q160: 94 | R160: 1,502
B161: Abril | C161: 14,855 | D161: =+C161/30 -> 495 | E161: 8,474 | F161: 6,381 | G161: 13,726 | H161: =+G161/30 -> 458 | I161: 10,243 | J161: - | K161: 3,483 | L161: 5,567 | M161: 752 | N161: 1,097 | O161: 991 | P161: 1,094 | Q161: 103 | R161: 1,529
B162: Mayo | C162: 15,237 | D162: =+C162/31 -> 492 | E162: 8,840 | F162: 6,397 | G162: 14,622 | H162: =+G162/31 -> 472 | I162: 11,035 | J162: - | K162: 3,587 | L162: 5,821 | M162: 759 | N162: 1,171 | O162: 856 | P162: 1,229 | Q162: 211 | R162: 1,596
B163: Junio | C163: 14,745 | D163: =+C163/30 -> 491 | E163: 8,651 | F163: 6,094 | G163: 14,005 | H163: =+G163/30 -> 467 | I163: 10,782 | J163: - | K163: 3,224 | L163: 5,676 | M163: 691 | N163: 817 | O163: 1,044 | P163: 1,257 | Q163: 198 | R163: 1,670
B164: Julio | C164: 14,979 | D164: 483 | E164: 8,765 | F164: 6,214 | G164: 14,647 | H164: 472 | I164: 11,031 | J164: - | K164: 3,615 | L164: 5,597 | M164: 732 | N164: 1,008 | O164: 680 | P164: 1,139 | Q164: 183 | R164: =+L164-M164-N164-O164-P164-Q164 -> 1,855
B165: Agosto | C165: 14,776 | D165: 477 | E165: 8,683 | F165: 6,093 | G165: 14,422 | H165: 465 | I165: 11,038 | J165: - | K165: 3,384 | L165: 6,149 | M165: 673 | N165: 977 | O165: 898 | P165: 1,219 | Q165: 223 | R165: 2,160
B166: Septiembre | C166: 14,256 | D166: =+C166/30 -> 475 | E166: 8,401 | F166: 5,855 | G166: 12,927 | H166: =+G166/30 -> 431 | I166: 9,917 | J166: - | K166: 3,010 | L166: 5,549 | M166: 809 | N166: 733 | O166: 938 | P166: 1,227 | Q166: 224 | R166: 1,617
B167: Octubre | C167: 14,718 | D167: 475 | E167: 8,615 | F167: 6,103 | G167: 14,554 | H167: 469 | I167: 10,984 | J167: - | K167: 3,570 | L167: 5,866 | M167: 836 | N167: 863 | O167: 889 | P167: 1,096 | Q167: 207 | R167: 1,975
B168: Noviembre | C168: 14,309 | D168: =+C168/30 -> 477 | E168: 8,389 | F168: =5919.61097+1 -> 5,921 | G168: 13,716 | H168: =+G168/30 -> 457 | I168: 10,511 | J168: - | K168: 3,204 | L168: 5,774 | M168: 792 | N168: 610 | O168: 900 | P168: 1,218 | Q168: 159 | R168: 2,095
B169: Diciembre | C169: 14,567 | D169: 470 | E169: 8,592 | F169: =5970.56151833333+5 -> 5,976 | G169: 13,849 | H169: 447 | I169: 10,615 | J169: - | K169: 3,234 | L169: 5,791 | M169: 957 | N169: 607 | O169: 890 | P169: 1,333 | Q169: 175 | R169: 1,829
A171: 2010 | B171: Enero-Diciembre | C171: =SUM(C172:C183) -> 177,422 | D171: =+C171/365 -> 486 | E171: =SUM(E172:E183) -> 109,944 | F171: =SUM(F172:F183) -> 67,478 | G171: =SUM(G172:G183) -> 169,184 | H171: =+G171/365 -> 464 | I171: =SUM(I172:I183) -> 127,658 | J171: =SUM(J172:J175) -> 0 | K171: =SUM(K172:K183) -> 41,526 | L171: 61,886 | M171: 8,907 | N171: 9,443 | O171: 7,962 | P171: 12,616 | Q171: 1,991 | R171: 20,967
B172: Enero | C172: =+E172+F172 -> 14,373 | D172: =+C172/31 -> 464 | E172: 8,479 | F172: 5,894 | G172: =+I172+K172 -> 13,744 | H172: =+G172/31 -> 443 | I172: 10,544 | J172: - | K172: 3,199 | L172: 5,628 | M172: 731 | N172: 698 | O172: 830 | P172: 1,164 | Q172: 189 | R172: =+L172-M172-N172-O172-P172-Q172 -> 2,017
B173: Febrero | C173: 13,162 | D173: =+C173/28 -> 470 | E173: 7,744 | F173: 5,418 | G173: =+I173+K173 -> 12,542 | H173: =+G173/28 -> 448 | I173: 9,429 | J173: - | K173: 3,113 | L173: 4,884 | M173: 749 | N173: 863 | O173: 571 | P173: 971 | Q173: 198 | R173: 1,532
B174: Marzo | C174: 14,827 | D174: =+C174/31 -> 478 | E174: 8,792 | F174: 6,035 | G174: 13,924 | H174: =+G174/31 -> 449 | I174: 10,811 | J174: - | K174: 3,113 | L174: 4,070 | M174: 782 | N174: 358 | O174: 461 | P174: 1,006 | Q174: 106 | R174: 1,357
B175: Abril | C175: 14,393 | D175: =+C175/30 -> 480 | E175: 8,545 | F175: 5,848 | G175: 13,631 | H175: =+G175/30 -> 454 | I175: 10,269 | J175: - | K175: 3,362 | L175: 4,054 | M175: 709 | N175: 671 | O175: 420 | P175: 873 | Q175: 61 | R175: 1,320
B176: Mayo | C176: 14,831 | D176: =+C176/31 -> 478 | E176: 8,706 | F176: 6,125 | G176: 14,124 | H176: =+G176/31 -> 456 | I176: 10,566 | J176: - | K176: 3,558 | L176: 4,784 | M176: 805 | N176: 641 | O176: 571 | P176: 1,043 | Q176: 154 | R176: 1,569
B177: Junio | C177: 14,720 | D177: =+C177/30 -> 491 | E177: 8,592 | F177: 6,128 | G177: 13,630 | H177: =+G177/30 -> 454 | I177: 10,327 | J177: - | K177: 3,303 | L177: 5,506 | M177: 633 | N177: 909 | O177: 956 | P177: 1,113 | Q177: 212 | R177: 1,682
B178: Julio | C178: 15,245 | D178: 492 | E178: 8,896 | F178: 6,349 | G178: 14,694 | H178: 474 | I178: 11,018 | J178: - | K178: 3,677 | L178: 5,854 | M178: 746 | N178: 879 | O178: 667 | P178: 1,064 | Q178: 247 | R178: 2,251
B179: Agosto | C179: 15,033 | D179: 485 | E179: 9,729 | F179: 5,304 | G179: 14,268 | H179: 460 | I179: 10,862 | J179: - | K179: 3,406 | L179: 5,177 | M179: 660 | N179: 801 | O179: 777 | P179: 1,109 | Q179: 148 | R179: 1,682
B180: Septiembre | C180: 14,698 | D180: =+C180/30 -> 490 | E180: 9,551 | F180: 5,148 | G180: 14,345 | H180: =+G180/30 -> 478 | I180: 10,884 | J180: - | K180: 3,461 | L180: 5,052 | M180: 781 | N180: 838 | O180: 592 | P180: 1,077 | Q180: 64 | R180: 1,701
B181: Octubre | C181: 15,422 | D181: 497 | E181: 10,125 | F181: 5,297 | G181: 15,344 | H181: 495 | I181: 11,202 | J181: - | K181: 4,141 | L181: 6,037 | M181: 826 | N181: 1,070 | O181: 721 | P181: 1,181 | Q181: 195 | R181: 2,043
B182: Noviembre | C182: 15,238 | D182: =+C182/30 -> 508 | E182: 10,034 | F182: 5,205 | G182: 14,015 | H182: =+G182/30 -> 467 | I182: 10,783 | J182: - | K182: 3,232 | L182: 5,404 | M182: 845 | N182: 822 | O182: 681 | P182: 1,045 | Q182: 220 | R182: 1,791
B183: Diciembre | C183: 15,479 | D183: 499 | E183: 10,752 | F183: 4,727 | G183: 14,924 | H183: 481 | I183: 10,963 | J183: - | K183: 3,961 | L183: 5,437 | M183: 640 | N183: 894 | O183: 715 | P183: 970 | Q183: 198 | R183: 2,021
A185: 2011 | B185: Enero-Diciembre | C185: =SUM(C186:C197) -> 182,357 | D185: =+C185/365 -> 500 | E185: =SUM(E186:E197) -> 130,528 | F185: =SUM(F186:F197) -> 51,829 | G185: =SUM(G186:G197) -> 174,052 | H185: =+G185/365 -> 477 | I185: =SUM(I186:I197) -> 125,987 | J185: =SUM(J186:J189) -> 0 | K185: =SUM(K186:K197) -> 48,066 | L185: 70,046 | M185: 9,850 | N185: 10,571 | O185: 11,103 | P185: 14,793 | Q185: 2,530 | R185: 21,199
B186: Enero | C186: =+E186+F186 -> 15,526 | D186: =+C186/31 -> 501 | E186: 11,002 | F186: 4,525 | G186: =+I186+K186 -> 15,130 | H186: =+G186/31 -> 488 | I186: 11,372 | K186: 3,759 | L186: 5,635 | M186: 904 | N186: 899 | O186: 943 | P186: 1,358 | Q186: 190 | R186: =+L186-M186-N186-O186-P186-Q186 -> 1,342
B187: Febrero | C187: =+E187+F187 -> 14,253 | D187: =+C187/28 -> 509 | E187: 10,195 | F187: 4,058 | G187: =+I187+K187 -> 13,953 | H187: =+G187/28 -> 498 | I187: 10,408 | K187: 3,545 | L187: 5,109 | M187: 848 | N187: 924 | O187: 748 | P187: 983 | Q187: 199 | R187: 1,408
B188: Marzo | C188: 15,550 | D188: =+C188/31 -> 502 | E188: 11,092 | F188: 4,458 | G188: 15,070 | H188: =+G188/31 -> 486 | I188: 10,984 | K188: 4,087 | L188: 5,787 | M188: 713 | N188: 923 | O188: 849 | P188: 1,106 | Q188: 210 | R188: 1,987
B189: Abril | C189: 15,114 | D189: =+C189/30 -> 504 | E189: 10,751 | F189: 4,363 | G189: 14,398 | H189: =+G189/30 -> 480 | I189: 10,454 | K189: 3,945 | L189: 5,615 | M189: 965 | N189: 906 | O189: 969 | P189: 984 | Q189: 234 | R189: 1,557
B190: Mayo | C190: 15,424 | D190: =+C190/31 -> 498 | E190: 11,078 | F190: 4,346 | G190: 14,814 | H190: =+G190/31 -> 478 | I190: 10,771 | K190: 4,044 | L190: 5,855 | M190: 862 | N190: 824 | O190: 1,083 | P190: 1,028 | Q190: 239 | R190: 1,818
B191: Junio | C191: 14,848 | D191: =+C191/30 -> 495 | E191: 10,682 | F191: 4,167 | G191: 14,058 | H191: =+G191/30 -> 469 | I191: 10,162 | K191: 3,896 | L191: 6,028 | M191: 806 | N191: 679 | O191: 1,100 | P191: 1,396 | Q191: 179 | R191: 1,868
B192: Julio | C192: 15,240 | D192: =+C192/31 -> 492 | E192: 10,947 | F192: 4,293 | G192: 14,358 | H192: =+G192/31 -> 463 | I192: 10,375 | K192: 3,983 | L192: 6,229 | M192: 738 | N192: 1,290 | O192: 1,161 | P192: 1,364 | Q192: 238 | R192: 1,438
B193: Agosto | C193: 15,364 | D193: =+C193/31 -> 496 | E193: 11,077 | F193: 4,286 | G193: 14,735 | H193: =+G193/31 -> 475 | I193: 10,667 | K193: 4,068 | L193: 6,299 | M193: 881 | N193: 1,037 | O193: 1,023 | P193: 1,313 | Q193: 239 | R193: 1,807
B194: Septiembre | C194: 14,848 | D194: =+C194/30 -> 495 | E194: 10,583 | F194: 4,265 | G194: 14,059 | H194: =+G194/30 -> 469 | I194: 10,113 | K194: 3,946 | L194: 6,356 | M194: 690 | N194: 841 | O194: 1,002 | P194: 1,182 | Q194: 239 | R194: 2,402
B195: Octubre | C195: 15,547 | D195: =+C195/31 -> 502 | E195: 11,095 | F195: 4,452 | G195: 14,672 | H195: =+G195/31 -> 473 | I195: 10,210 | K195: 4,463 | L195: 6,143 | M195: 822 | N195: 986 | O195: 1,027 | P195: 1,305 | Q195: 236 | R195: 1,766
B196: Noviembre | C196: 15,124 | D196: =+C196/30 -> 504 | E196: 10,815 | F196: 4,309 | G196: 14,646 | H196: =+G196/30 -> 488 | I196: 9,928 | K196: 4,718 | L196: 5,430 | M196: 858 | N196: 559 | O196: 632 | P196: 1,367 | Q196: 207 | R196: 1,808
B197: Diciembre | C197: 15,519 | D197: =+C197/31 -> 501 | E197: 11,213 | F197: 4,306 | G197: 14,158 | H197: =+G197/31 -> 457 | I197: 10,544 | K197: 3,614 | L197: 5,559 | M197: 763 | N197: 703 | O197: 566 | P197: 1,406 | Q197: 120 | R197: 2,001
A199: 2012 | B199: Enero-Diciembre | C199: =SUM(C200:C211) -> 184,315 | D199: =+C199/365 -> 505 | E199: =SUM(E200:E211) -> 133,656 | F199: =SUM(F200:F211) -> 50,659 | G199: =SUM(G200:G211) -> 177,395 | H199: =+G199/365 -> 486 | I199: =SUM(I200:I211) -> 129,016 | J199: =SUM(J200:J203) -> 0 | K199: =SUM(K200:K211) -> 48,379 | L199: 71,566 | M199: 9,048 | N199: 8,238 | O199: 5,594 | P199: 17,133 | Q199: 2,674 | R199: 28,879
B200: Enero | C200: =+E200+F200 -> 15,628 | D200: =+C200/31 -> 504 | E200: 11,234 | F200: 4,394 | G200: =+I200+K200 -> 15,480 | H200: =+G200/31 -> 499 | I200: 11,182 | K200: 4,298 | L200: 5,839 | M200: 709 | N200: 749 | O200: 352 | P200: 1,422 | Q200: 241 | R200: =+L200-M200-N200-O200-P200-Q200 -> 2,366
B201: Febrero | C201: 14,583 | D201: =+C201/29 -> 503 | E201: 10,494 | F201: 4,089 | G201: =+I201+K201 -> 13,658 | H201: =+G201/29 -> 471 | I201: 9,783 | K201: 3,875 | L201: 5,639 | M201: 699 | N201: 853 | O201: 407 | P201: 1,248 | Q201: 212 | R201: 2,219
B202: Marzo | C202: 15,480 | D202: =+C202/31 -> 499 | E202: 11,100 | F202: 4,380 | G202: 14,887 | H202: =+G202/31 -> 480 | I202: 10,737 | K202: 4,151 | L202: 5,767 | M202: 741 | N202: 805 | O202: 470 | P202: 1,111 | Q202: 213 | R202: 2,426
B203: Abril | C203: 15,011 | D203: =+C203/30 -> 500 | E203: 10,789 | F203: 4,222 | G203: 14,244 | H203: =+G203/30 -> 475 | I203: 10,347 | K203: 3,897 | L203: 6,102 | M203: 758 | N203: 1,211 | O203: 539 | P203: 1,397 | Q203: 195 | R203: 2,001
B204: Mayo | C204: 15,433 | D204: =+C204/31 -> 498 | E204: 11,094 | F204: 4,339 | G204: 14,994 | H204: =+G204/31 -> 484 | I204: 10,886 | K204: 4,108 | L204: 6,457 | M204: 698 | N204: 891 | O204: 433 | P204: 1,556 | Q204: 250 | R204: 2,630
B205: Junio | C205: 15,050 | D205: =+C205/30 -> 502 | E205: 10,894 | F205: 4,157 | G205: 14,554 | H205: =+G205/30 -> 485 | I205: 10,668 | K205: 3,886 | L205: 5,877 | M205: 744 | N205: 956 | O205: 467 | P205: 1,412 | Q205: 221 | R205: 2,078
B206: Julio | C206: =+E206+F206 -> 15,746 | D206: =+C206/31 -> 508 | E206: 11,516 | F206: 4,229 | G206: 15,175 | H206: =+G206/31 -> 490 | I206: 11,160 | K206: 4,015 | L206: 5,963 | M206: 768 | N206: 525 | O206: 563 | P206: 1,585 | Q206: 224 | R206: 2,298
B207: Agosto | C207: 15,873 | D207: =+C207/31 -> 512 | E207: 11,587 | F207: 4,285 | G207: 15,295 | H207: =+G207/31 -> 493 | I207: 11,283 | K207: 4,012 | L207: 5,872 | M207: 759 | N207: 644 | O207: 447 | P207: 1,368 | Q207: 201 | R207: 2,452
B208: Septiembre | C208: =+E208+F208 -> 15,193 | D208: =+C208/30 -> 506 | E208: 11,120 | F208: 4,074 | G208: 14,546 | H208: =+G208/30 -> 485 | I208: 10,507 | K208: 4,039 | L208: 6,119 | M208: 729 | N208: 558 | O208: 432 | P208: 1,610 | Q208: 237 | R208: 2,553
B209: Octubre | C209: 15,589 | D209: =+C209/31 -> 503 | E209: 11,408 | F209: 4,181 | G209: 14,923 | H209: =+G209/31 -> 481 | I209: 10,785 | K209: 4,138 | L209: 5,904 | M209: 863 | N209: 462 | O209: 594 | P209: 1,520 | Q209: 209 | R209: 2,257
B210: Noviembre | C210: 15,125 | D210: =+C210/30 -> 504 | E210: 11,067 | F210: 4,058 | G210: 14,388 | H210: =+G210/30 -> 480 | I210: 10,378 | K210: 4,010 | L210: 5,749 | M210: 828 | N210: 414 | O210: 450 | P210: 1,404 | Q210: 231 | R210: 2,423
B211: Diciembre | C211: 15,604 | D211: =+C211/31 -> 503 | E211: 11,353 | F211: 4,251 | G211: 15,251 | H211: =+G211/31 -> 492 | I211: 11,301 | K211: 3,950 | L211: 6,277 | M211: 753 | N211: 169 | O211: 439 | P211: 1,500 | Q211: 240 | R211: 3,176
A213: 2013 | B213: Enero-Diciembre | C213: =SUM(C214:C225) -> 192,120 | D213: =+C213/365 -> 526 | E213: =SUM(E214:E225) -> 144,921 | F213: =SUM(F214:F225) -> 47,199 | G213: =SUM(G214:G225) -> 185,307 | H213: =+G213/365 -> 508 | I213: =SUM(I214:I225) -> 131,972 | J213: =SUM(J214:J217) -> 0 | K213: =SUM(K214:K225) -> 53,334 | L213: 69,654 | M213: 8,818 | N213: 6,203 | O213: 6,943 | P213: 18,593 | Q213: 2,604 | R213: 26,493
B214: Enero | C214: =+E214+F214 -> 15,656 | D214: =+C214/31 -> 505 | E214: 11,590 | F214: 4,066 | G214: =+I214+K214 -> 15,571 | H214: =+G214/31 -> 502 | I214: 11,416 | K214: 4,155 | L214: 6,022 | M214: 761 | N214: 525 | O214: 568 | P214: 1,558 | Q214: 252 | R214: =+L214-M214-N214-O214-P214-Q214 -> 2,358
B215: Febrero | C215: 14,262 | D215: =+C215/28 -> 509 | E215: 10,611 | F215: 3,651 | G215: 13,512 | H215: =+G215/28 -> 483 | I215: 10,081 | K215: 3,431 | L215: 4,826 | M215: 628 | N215: 219 | O215: 500 | P215: 1,329 | Q215: 163 | R215: 1,987
B216: Marzo | C216: 15,631 | D216: =+C216/31 -> 504 | E216: 11,647 | F216: 3,984 | G216: 14,831 | H216: =+G216/31 -> 478 | I216: 10,697 | K216: 4,134 | L216: 4,992 | M216: 744 | N216: 368 | O216: 609 | P216: 1,597 | Q216: 97 | R216: 1,577
B217: Abril | C217: 15,472 | D217: =+C217/30 -> 516 | E217: 11,516 | F217: 3,956 | G217: 14,879 | H217: =+G217/30 -> 496 | I217: 10,816 | K217: 4,062 | L217: 5,029 | M217: 698 | N217: 368 | O217: 708 | P217: 1,445 | Q217: 160 | R217: 1,651
B218: Mayo | C218: 16,167 | D218: =+C218/31 -> 522 | E218: 12,088 | F218: 4,079 | G218: 15,736 | H218: =+G218/31 -> 508 | I218: 10,937 | K218: 4,799 | L218: 6,069 | M218: 708 | N218: 389 | O218: 840 | P218: 1,425 | Q218: 287 | R218: 2,420
B219: Junio | C219: =+E219+F219 -> 15,721 | D219: =+C219/30 -> 524 | E219: 11,722 | F219: 3,999 | G219: 14,742 | H219: =+G219/30 -> 491 | I219: 9,986 | K219: 4,757 | L219: 5,916 | M219: 852 | N219: 448 | O219: 681 | P219: 1,538 | Q219: 269 | R219: 2,127
... 41 more rows

Sheet Iem-411 PUBLICACIÓN
A2: 4.1.1 PRODUCCIÓN NACIONAL DE PETROLEO CRUDO Y SUS DERIVADOS
A3: Miles de barriles
C5: Producción nacional petróleo crudo campo | G5: Transporte de crudo por oleoductos | L5: Producción nacional derivados petróleo efectuada por EP Petroecuador
A6: Período | C6: Producción | D6: Producción por empresas | G6: Transporte | H6: Transporte | L6: Producción | M6: Fuel Oil | N6: Residuo | O6: Diesel | P6: Gasolina
C7: total | D7: prom / dia | E7: Empresas Públicas (1) | F7: Privadas | G7: total | H7: prom / dia | I7: SOTE | J7: OTA | K7: OCP(2) | L7: total | M7: # 4 | N7: # 6 (3) | O7: # 2 | P7: extra | Q7: GLP | R7: Otros
C9: a=b+c | E9: b | F9: c | G9: d=e+f+g | I9: e | J9: f | K9: g | L9: h=i+j+k+l+m+n | M9: i | N9: j | O9: k | P9: l | Q9: m | R9: n
A12: 1997 | C12: 141,708 | D12: 388 | E12: 106,701 | F12: 35,007 | G12: 130,933 | H12: 359 | I12: 115,536 | J12: 15,397 | K12: - | L12: 46,120 | M12: 19,451 | N12: - | O12: 8,788 | P12: 7,886 | Q12: 2,310 | R12: 7,685
A13: 1998 | C13: 137,079 | D13: 376 | E13: 101,401 | F13: 35,678 | G13: 127,505 | H13: 349 | I13: 113,845 | J13: 13,660 | K13: - | L13: 50,220 | M13: 21,631 | N13: - | O13: 8,950 | P13: 9,131 | Q13: 2,453 | R13: 8,054
A14: 1999 | C14: 136,291 | D14: 374 | E14: 89,543 | F14: 46,748 | G14: 129,355 | H14: 354 | I14: 116,800 | J14: 12,555 | K14: - | L14: 47,285 | M14: 20,826 | N14: - | O14: 7,012 | P14: 9,633 | Q14: 2,014 | R14: 7,799
A15: 2000 | C15: 146,209 | D15: 400 | E15: 85,047 | F15: 61,162 | G15: 140,424 | H15: 381 | I15: 130,655 | J15: 9,796 | K15: - | L15: 58,940 | M15: 10,787 | N15: 14,079 | O15: 12,080 | P15: 10,226 | Q15: 2,818 | R15: 8,951
A16: 2001 | C16: 148,746 | D16: 407 | E16: 82,929 | F16: 65,817 | G16: 140,926 | H16: 386 | I16: 134,851 | J16: 6,075 | K16: - | L16: 56,809 | M16: 10,953 | N16: 11,898 | O16: 13,450 | P16: 10,837 | Q16: 2,407 | R16: 7,263
A17: 2002 | C17: 143,759 | D17: 392 | E17: 80,775 | F17: 62,984 | G17: 134,506 | H17: 368 | I17: 132,238 | J17: 2,268 | K17: - | L17: 55,467 | M17: 11,354 | N17: 10,741 | O17: 12,439 | P17: 10,163 | Q17: 2,060 | R17: 8,710
A18: 2003 | C18: 153,518 | D18: 418 | E18: 74,514 | F18: 79,004 | G18: 140,666 | H18: 383 | I18: 119,987 | J18: 2,489 | K18: 18,190 | L18: 52,696 | M18: 10,812 | N18: 8,879 | O18: 11,049 | P18: 10,028 | Q18: 2,230 | R18: 9,699
A19: 2004 | C19: 192,315 | D19: 526 | E19: 71,948 | F19: 120,368 | G19: 180,810 | H19: 494 | I19: 118,436 | J19: - | K19: 62,374 | L19: 59,678 | M19: 11,268 | N19: 10,012 | O19: 11,866 | P19: 10,312 | Q19: 2,184 | R19: 14,036
A20: 2005 | C20: 194,172 | D20: 532 | E20: 70,972 | F20: 123,200 | G20: 178,646 | H20: 489 | I20: 120,916 | J20: - | K20: 57,730 | L20: 61,620 | M20: 10,439 | N20: 10,474 | O20: 12,459 | P20: 10,628 | Q20: 2,120 | R20: 15,501
A21: 2006 | C21: 195,523 | D21: 536 | E21: 90,438 | F21: 105,085 | G21: 184,038 | H21: 504 | I21: 126,159 | J21: - | K21: 57,879 | L21: 62,902 | M21: 9,810 | N21: 11,785 | O21: 12,056 | P21: 11,355 | Q21: 2,114 | R21: 15,782
A22: 2007 | C22: 186,547 | D22: 511 | E22: 94,334 | F22: 92,213 | G22: 175,020 | H22: 480 | I22: 121,118 | J22: - | K22: 53,901 | L22: 65,139 | M22: 8,467 | N22: 13,663 | O22: 11,179 | P22: 12,629 | Q22: 1,401 | R22: 17,800
A23: 2008 | C23: 184,727 | D23: 505 | E23: 97,571 | F23: 87,157 | G23: 175,055 | H23: 478 | I23: 126,542 | J23: 0 | K23: 48,513 | L23: 67,553 | M23: 8,862 | N23: 13,366 | O23: 11,188 | P23: 13,308 | Q23: 2,073 | R23: 18,756
A24: 2009 | C24: 177,414 | D24: 486 | E24: 102,768 | F24: 74,647 | G24: 169,413 | H24: 464 | I24: 128,297 | J24: 0 | K24: 41,116 | L24: 68,545 | M24: 9,143 | N24: 10,571 | O24: 11,180 | P24: 14,265 | Q24: 2,159 | R24: 21,227
A25: 2010 | C25: 177,422 | D25: 486 | E25: 109,944 | F25: 67,478 | G25: 169,184 | H25: 464 | I25: 127,658 | J25: 0 | K25: 41,526 | L25: 61,886 | M25: 8,907 | N25: 9,443 | O25: 7,962 | P25: 12,616 | Q25: 1,991 | R25: 20,967
A26: 2011 | C26: 182,357 | D26: 500 | E26: 130,528 | F26: 51,829 | G26: 174,052 | H26: 477 | I26: 125,987 | J26: 0 | K26: 48,066 | L26: 70,046 | M26: 9,850 | N26: 10,571 | O26: 11,103 | P26: 14,793 | Q26: 2,530 | R26: 21,199
A27: 2012 | C27: 184,315 | D27: 505 | E27: 133,656 | F27: 50,659 | G27: 177,395 | H27: 486 | I27: 129,016 | J27: 0 | K27: 48,379 | L27: 71,566 | M27: 9,048 | N27: 8,238 | O27: 5,594 | P27: 17,133 | Q27: 2,674 | R27: 28,879
A28: 2013 | C28: 192,120 | D28: 526 | E28: 144,921 | F28: 47,199 | G28: 185,307 | H28: 508 | I28: 131,972 | J28: 0 | K28: 53,334 | L28: 69,654 | M28: 8,818 | N28: 6,203 | O28: 6,943 | P28: 18,593 | Q28: 2,604 | R28: 26,493
A29: 2014 | C29: 203,071 | D29: 556 | E29: 157,976 | F29: 45,095 | G29: 191,634 | H29: 525 | I29: 132,530 | J29: 0 | K29: 59,104 | L29: 65,986 | M29: 9,067 | N29: 1,342 | O29: 6,432 | P29: 19,449 | Q29: 2,005 | R29: 27,689
A31: 2013 | B31: Enero-Abril | C31: 61,022 | D31: 509 | E31: 45,364 | F31: 15,657 | G31: 58,793 | H31: 490 | I31: 43,010 | J31: 0 | K31: 15,782 | L31: 20,870 | M31: 2,831 | N31: 1,480 | O31: 2,385 | P31: 5,929 | Q31: 672 | R31: 7,573
B32: Enero | C32: 15,656 | D32: 505 | E32: 11,590 | F32: 4,066 | G32: 15,571 | H32: 502 | I32: 11,416 | K32: 4,155 | L32: 6,022 | M32: 761 | N32: 525 | O32: 568 | P32: 1,558 | Q32: 252 | R32: 2,358
B33: Febrero | C33: 14,262 | D33: 509 | E33: 10,611 | F33: 3,651 | G33: 13,512 | H33: 483 | I33: 10,081 | K33: 3,431 | L33: 4,826 | M33: 628 | N33: 219 | O33: 500 | P33: 1,329 | Q33: 163 | R33: 1,987
B34: Marzo | C34: 15,631 | D34: 504 | E34: 11,647 | F34: 3,984 | G34: 14,831 | H34: 478 | I34: 10,697 | K34: 4,134 | L34: 4,992 | M34: 744 | N34: 368 | O34: 609 | P34: 1,597 | Q34: 97 | R34: 1,577
B35: Abril | C35: 15,472 | D35: 516 | E35: 11,516 | F35: 3,956 | G35: 14,879 | H35: 496 | I35: 10,816 | K35: 4,062 | L35: 5,029 | M35: 698 | N35: 368 | O35: 708 | P35: 1,445 | Q35: 160 | R35: 1,651
B36: Mayo | C36: 16,167 | D36: 522 | E36: 12,088 | F36: 4,079 | G36: 15,736 | H36: 508 | I36: 10,937 | K36: 4,799 | L36: 6,064 | M36: 708 | N36: 389 | O36: 840 | P36: 1,425 | Q36: 287 | R36: 2,416
B37: Junio | C37: 15,721 | D37: 524 | E37: 11,722 | F37: 3,999 | G37: 14,742 | H37: 491 | I37: 9,986 | K37: 4,757 | L37: 5,916 | M37: 852 | N37: 448 | O37: 681 | P37: 1,538 | Q37: 269 | R37: 2,127
B38: Julio | C38: 16,439 | D38: 530 | E38: 12,377 | F38: 4,062 | G38: 16,244 | H38: 524 | I38: 11,548 | K38: 4,696 | L38: 6,556 | M38: 689 | N38: 849 | O38: 353 | P38: 1,685 | Q38: 261 | R38: 2,718
B39: Agosto | C39: 16,636 | D39: 537 | E39: 12,666 | F39: 3,971 | G39: 16,083 | H39: 519 | I39: 11,430 | K39: 4,652 | L39: 6,225 | M39: 690 | N39: 862 | O39: 393 | P39: 1,731 | Q39: 213 | R39: 2,336
B40: Septiembre | C40: 16,054 | D40: 535 | E40: 12,262 | F40: 3,792 | G40: 15,649 | H40: 522 | I40: 11,163 | K40: 4,486 | L40: 6,191 | M40: 696 | N40: 741 | O40: 554 | P40: 1,424 | Q40: 244 | R40: 2,532
B41: Octubre | C41: 16,736 | D41: 540 | E41: 12,793 | F41: 3,943 | G41: 16,357 | H41: 528 | I41: 11,439 | K41: 4,919 | L41: 6,212 | M41: 748 | N41: 815 | O41: 532 | P41: 1,591 | Q41: 230 | R41: 2,296
B42: Noviembre | C42: 16,350 | D42: 545 | E42: 12,555 | F42: 3,795 | G42: 15,376 | H42: 513 | I42: 11,006 | K42: 4,371 | L42: 6,185 | M42: 742 | N42: 618 | O42: 555 | P42: 1,572 | Q42: 228 | R42: 2,470
B43: Diciembre | C43: 16,995 | D43: 548 | E43: 13,095 | F43: 3,900 | G43: 16,326 | H43: 527 | I43: 11,454 | K43: 4,872 | L43: 5,432 | M43: 862 | N43: 0 | O43: 651 | P43: 1,698 | Q43: 200 | R43: 2,021
A45: 2014 | B45: Enero-Abril | C45: 66,537 | D45: 554 | E45: 51,697 | F45: 14,840 | G45: 61,717 | H45: 514 | I45: 43,266 | J45: 0 | K45: 18,451 | L45: 23,163 | M45: 3,034 | N45: 1,149 | O45: 2,488 | P45: 6,515 | Q45: 887 | R45: 9,091
B46: Enero | C46: 17,054 | D46: 550 | E46: 13,209 | F46: 3,846 | G46: 15,607 | H46: 503 | I46: 11,164 | K46: 4,442 | L46: 6,053 | M46: 762 | N46: 305 | O46: 714 | P46: 1,680 | Q46: 230 | R46: 2,362
B47: Febrero | C47: 15,422 | D47: 551 | E47: 11,950 | F47: 3,472 | G47: 14,292 | H47: 510 | I47: 10,307 | K47: 3,985 | L47: 5,494 | M47: 700 | N47: 234 | O47: 648 | P47: 1,513 | Q47: 224 | R47: 2,174
B48: Marzo | C48: 17,255 | D48: 557 | E48: 13,425 | F48: 3,830 | G48: 15,619 | H48: 504 | I48: 11,137 | K48: 4,482 | L48: 5,711 | M48: 818 | N48: 451 | O48: 448 | P48: 1,686 | Q48: 228 | R48: 2,080
B49: Abril | C49: 16,806 | D49: 560 | E49: 13,114 | F49: 3,692 | G49: 16,200 | H49: 540 | I49: 10,657 | K49: 5,542 | L49: 5,906 | M49: 754 | N49: 159 | O49: 677 | P49: 1,636 | Q49: 205 | R49: 2,474
B50: Mayo | C50: 17,183 | D50: 554 | E50: 13,349 | F50: 3,834 | G50: 16,730 | H50: 540 | I50: 11,329 | K50: 5,401 | L50: 5,715 | M50: 738 | N50: 193 | O50: 523 | P50: 1,581 | Q50: 197 | R50: 2,484
B51: Junio | C51: 16,658 | D51: 555 | E51: 12,961 | F51: 3,697 | G51: 14,919 | H51: 497 | I51: 10,895 | K51: 4,025 | L51: 6,545 | M51: 803 | N51: 0 | O51: 557 | P51: 1,816 | Q51: 192 | R51: 3,178
B52: Julio | C52: 17,308 | D52: 558 | E52: 13,507 | F52: 3,800 | G52: 16,571 | H52: 535 | I52: 11,073 | K52: 5,497 | L52: 5,710 | M52: 591 | N52: 0 | O52: 383 | P52: 1,791 | Q52: 233 | R52: 2,712
B53: Agosto | C53: 17,308 | D53: 558 | E53: 13,476 | F53: 3,833 | G53: 16,766 | H53: 541 | I53: 11,466 | K53: 5,300 | L53: 5,450 | M53: 767 | N53: 0 | O53: 378 | P53: 1,675 | Q53: 102 | R53: 2,527
B54: Septiembre | C54: 16,526 | D54: 551 | E54: 12,871 | F54: 3,655 | G54: 15,858 | H54: 529 | I54: 11,029 | K54: 4,829 | L54: 5,166 | M54: 911 | N54: 0 | O54: 377 | P54: 1,622 | Q54: 93 | R54: 2,164
B55: Octubre | C55: 17,273 | D55: 557 | E55: 13,469 | F55: 3,804 | G55: 16,030 | H55: 517 | I55: 11,234 | K55: 4,796 | L55: 4,168 | M55: 766 | N55: 0 | O55: 351 | P55: 1,471 | Q55: 104 | R55: 1,476
B56: Noviembre | C56: 16,884 | D56: 563 | E56: 13,124 | F56: 3,761 | G56: 16,551 | H56: 552 | I56: 11,177 | K56: 5,374 | L56: 4,659 | M56: 748 | N56: 0 | O56: 602 | P56: 1,457 | Q56: 100 | R56: 1,751
B57: Diciembre | C57: 17,393 | D57: 561 | E57: 13,522 | F57: 3,871 | G57: 16,492 | H57: 532 | I57: 11,061 | K57: 5,431 | L57: 5,408 | M57: 710 | N57: 0 | O57: 774 | P57: 1,521 | Q57: 97 | R57: 2,306
A59: 2015 | B59: Enero-Abril | C59: 66,349 | D59: 553 | E59: 51,255 | F59: 15,095 | G59: 64,018 | H59: 533 | I59: 44,013 | J59: 0 | K59: 20,005 | L59: 21,233 | M59: 2,685 | N59: 979 | O59: 2,563 | P59: 5,945 | Q59: 398 | R59: 8,663
B60: Enero | C60: 17,289 | D60: 558 | E60: 13,371 | F60: 3,918 | G60: 16,822 | H60: 543 | I60: 11,396 | K60: 5,426 | L60: 5,253 | M60: 725 | N60: 219 | O60: 693 | P60: 1,573 | Q60: 100 | R60: 1,943
B61: Febrero | C61: 15,488 | D61: 553 | E61: 11,883 | F61: 3,604 | G61: 14,993 | H61: 535 | I61: 10,251 | K61: 4,742 | L61: 4,821 | M61: 614 | N61: 602 | O61: 712 | P61: 1,267 | Q61: 87 | R61: 1,539
B62: Marzo | C62: 17,136 | D62: 553 | E62: 13,248 | F62: 3,888 | G62: 16,447 | H62: 531 | I62: 11,367 | K62: 5,080 | L62: 5,733 | M62: 639 | N62: 158 | O62: 755 | P62: 1,644 | Q62: 105 | R62: 2,432
B63: Abril | C63: 16,437 | D63: 548 | E63: 12,753 | F63: 3,684 | G63: 15,756 | H63: 525 | I63: 10,999 | K63: 4,757 | L63: 5,426 | M63: 706 | N63: 0 | O63: 404 | P63: 1,462 | Q63: 106 | R63: 2,748
A65: (1) Mediante Decreto Ejecutivo 1351-A, Petroamazonas EP concretó el proceso de fusión por absorción con la Gerencia de Exploración y Producción de EP Petroecuador; adicionalmente, el control del
A66: 70% del paquete accionario de Operación Río Napo, Compañía de Economía Mixta y el consecuente control en el cumplimiento operacional del bloque 60 (Sacha).
A67: A partir del 6 de Abril del 2010 por Decreto Ejecutivo 314 se crea la Empresa Publica de Exploración y Explotación de Hidrocarburos PETROAMAZONAS EP.
A68: A partir del 6 de Abril del 2010 por Decreto Ejecutivo 315 se crea la Empresa Publica de Hidrocarburos EP PETROECUADOR.
A69: Incluye producción de la Compañía Operaciones Río Napo.
A70: (2) A partir de agosto de 2003 comenzó a operar el OCP.
A71: (3) A partir de mayo de 2000 se produce residuo que reemplaza a Fuel Oil #6. Desde enero de 2006 incluye Cutter Stock empleado como diluyente para el Combustible Mezcla de exportación (Fuel Oil #6).
A72: FUENTE: AGENCIA DE REGULACIÓN Y CONTROL HIDROCARFURÍFERO, EP PETROECUADOR, PETROAMAZONAS EP
A73: ELABORACIÓN: BANCO CENTRAL DEL ECUADOR
D77: (1) RESIDUO ES EL COMBUSTIBLE MEZCLA (fuel Oil #6)
C80: NOTA
C81: IMPORTANTE:
C82: En el 2005 PETRO lo llama | D82: Residuo para Exportación REE | E82: (f)
C83: f) A partir de mayo del 2000 se produce residuo que reemplaza al Fuel Oil # 6. Este derivado se mezcla con diluyente (Cutter Stock) para su exportación como Fuel Oil #6
C85: En el 2006 lo llama Combustible Mezcla (Fo # 6 (g)
C86: g) Incluye un volumen de 2.251.287 bls Cutter Stock empleado como diluyente y 9.533.322 bls de Residuo para la mezcla de Combustible Mezcla (Fuel Oil # 6).
C88: En el 2007 lo llama Combustible Mezcla (Fo # 6 (g)
